Cogmind - Beta 15 @@@ ROGUE MODE // 2025.05.31 @ 00:45:08 Player: Beosis Result: Self-destructed Performance ------------- Evolutions (1) 500 Regions Visited (5) 1000 Robots Destroyed (31) 155 Value Destroyed (703) 703 Prototype IDs (23) 460 Alien Tech Used (0) 0 Bonus (300) 300 TOTAL SCORE: 3118 Bonus ------- Aligned with FarCom 300 Cogmind --------- Core Integrity 34/400 Matter 238/300 Energy 100/100 System Corruption 0% Temperature Cool (89) Movement Core (50) Location -8/Mines Parts ------- > --- POWER (1) -------- (None) > --- PROPULSION (4) --- (None) > --- UTILITY (2) ------ Improved Targeting Computer > --- WEAPON (2) ------- (None) > --- INVENTORY (5) ---- Ion Engine Light Ion Engine Sensor Array Transport Network Coupler Datajack Peak State ------------ > --- POWER ------------ Ion Engine > --- PROPULSION ------- (None) > --- UTILITY ---------- Improved Targeting Computer Chronowheel > --- WEAPON ----------- Small Laser Gauss Rifle > --- INVENTORY -------- Ion Engine Light Ion Engine Sensor Array Transport Network Coupler Datajack [Rating: 21] Favorites ----------- Power Ion Engine Engine Ion Engine Propulsion Aluminum Leg Leg Aluminum Leg Utility Small Storage Unit Device Sensor Array Storage Small Storage Unit Processor Visual Processing Unit Protection Propulsion Shielding Weapon Light Assault Rifle Energy Gun Medium Laser Energy Cannon Beam Cannon Ballistic Gun Light Assault Rifle Ballistic Cannon Light Cannon Launcher Grenade Launcher Special Melee Weapon Datajack Build | -11 -10 -9 -9 -9 -8 ------- Run | Yrd Mat Mat Min Exi Min Slots Evolved 2 | . . 2 . . . Power . | . . . . . . Propulsion 2 | . . 2 . . . Utility . | . . . . . . Weapon . | . . . . . . Parts Attached 28 | 6 10 6 3 . 3 Power 4 | 1 1 1 1 . . Engine 4 | 1 1 1 1 . . Core . | . . . . . . Reactor . | . . . . . . Propulsion 7 | 2 2 1 2 . . Treads . | . . . . . . Leg 7 | 2 2 1 2 . . Wheel . | . . . . . . Hover . | . . . . . . Flight . | . . . . . . Utility 7 | 1 1 3 . . 2 Device 2 | . . 1 . . 1 Storage 1 | 1 . . . . . Processor 3 | . 1 1 . . 1 Hackware . | . . . . . . Protection 1 | . . 1 . . . Artifact . | . . . . . . Weapon 10 | 2 6 1 . . 1 Energy Gun 2 | 1 1 . . . . Energy Cannon 1 | . 1 . . . . Ballistic Gun 4 | 1 1 1 . . 1 Ballistic Cannon 1 | . 1 . . . . Launcher 1 | . 1 . . . . Special Weapon . | . . . . . . Impact Weapon . | . . . . . . Slashing Weapon . | . . . . . . Piercing Weapon . | . . . . . . Special Melee Weapon 1 | . 1 . . . . Unidentified Prototypes . | . . . . . . Parts Lost 15 | . 1 3 2 . 9 Power 1 | . . . . . 1 Propulsion 7 | . 1 2 1 . 3 Utility 3 | . . 1 . . 2 Weapon 4 | . . . 1 . 3 Highest Loss Streak 8 | . 1 2 2 . 8 To Critical Strikes . | . . . . . . Average Backups 6 | 1 7 5 7 7 7 Power 1 | . 1 1 2 2 2 Propulsion . | . . . . . . Utility 2 | . 2 2 3 3 2 Weapon 1 | . 2 1 1 1 . Tool/Special . | . . . . . . Unused Backups 5 | . 3 . . . 2 Power 2 | . 1 . . . 1 Propulsion . | . . . . . . Utility 3 | . 2 . . . 1 Weapon . | . . . . . . Tool/Special . | . . . . . . Average Slot Usage (%) 94 | . 98 86 77 88 79 Engine 12 | . 14 11 11 11 11 Leg 29 | . 27 33 24 33 28 Device 1 | . . 7 . . . Storage 11 | . 14 3 11 11 10 Processor 9 | . 13 1 . . 7 Protection 2 | . . 7 11 11 . Energy Gun 5 | . 6 7 2 . . Energy Cannon 3 | . . 10 6 11 2 Ballistic Gun 10 | . 12 2 11 11 16 Ballistic Cannon 3 | . 5 . . . . Launcher 2 | . 3 . . . . Peak Build Rating 21 | 6 9 10 9 11 21 Average Rating 8 | 4 7 8 8 9 12 On Entrance 7 | . 6 8 8 9 11 Naked Turns . | . . . . . . Heaviest Build 17 | 11 15 17 17 17 17 Greatest Support 40 | 20 20 40 30 30 30 Greatest Overweight (x) 1 | 1 1 . 1 . . Average Overweight (x) . | . . . . . . Largest Inventory Capacity 8 | 8 8 8 8 8 8 Average Capacity 7 | 7 8 6 8 8 7 Most Carried 8 | 2 8 8 8 8 8 Average Carried 6 | 1 7 5 7 7 7 Final Capacity 8 | 8 8 8 8 8 5 Final Carried 8 | 2 8 8 7 8 5 Class Distribution -------------------- 80% | Mutant 19% | Scavenger-Mutant Dominant Class ---------------- Mutant | -10/Materials Mutant | -9/Materials Mutant | -9/Mines Scavenger-Mutant | -9/Exiles Scavenger-Mutant | -8/Mines Resources | -11 -10 -9 -9 -9 -8 ----------- Run | Yrd Mat Mat Min Exi Min Matter Collected 871 | 237 327 102 187 . 18 Remotely . | . . . . . . Salvage Created 980 | . 375 402 118 . 85 Parts 55 | . 28 17 5 . 5 Haulers Intercepted 2 | . 1 1 . . . Recyclers Shooed 1 | . 1 . . . . Parts Field Recycled . | . . . . . . Retrieved Matter . | . . . . . . Parts Self-Destructed . | . . . . . . Prevented . | . . . . . . Kills | -11 -10 -9 -9 -9 -8 ------- Run | Yrd Mat Mat Min Exi Min Combat Hostiles Destroyed 22 | . 10 7 3 . 2 Melee 1 | . 1 . . . . Guns 7 | . 3 1 2 . 1 Cannons 9 | . 6 1 1 . 1 AOE 5 | . . 5 . . . Classes Destroyed 7 | . 5 1 . . 1 Hauler 2 | . 1 1 . . . Recycler 4 | . 1 3 . . . Watcher 3 | . 3 . . . . Swarmer 10 | . 6 4 . . . Grunt 8 | . 4 . 3 . 1 Sentry 3 | . . 3 . . . Hunter 1 | . . . . . 1 Best Kill Streak 6 | . 3 6 3 . 1 Combat Bots Only 4 | . 3 4 3 . 1 Max Kills in Single Turn 2 | . 1 2 1 . 1 Gunslinging . | . . . . . . Exploded 2 | . . 2 . . . Melee 1 | . 1 . . . . Uniques/NPCs Destroyed . | . . . . . . Combat | -11 -10 -9 -9 -9 -8 -------- Run | Yrd Mat Mat Min Exi Min Hostile Shots Fired 226 | . 96 42 15 . 73 Missed 66 | . 27 10 9 . 20 Hits 160 | . 69 32 6 . 53 Projectile 160 | . 69 32 6 . 53 Critical Strikes 3 | . . 1 . . 2 Actively Blocked 1 | . . 1 . . . Damage Taken 1988 | . 612 382 118 . 876 Core 494 | . 128 90 13 . 263 Absorbed by Shields . | . . . . . . Redirected to Shielding 51 | . . 27 8 . 16 Core Remaining (%) 74 | 100 48 . . . . Volleys Fired 102 | . 61 16 5 . 20 Largest 2 | . 2 2 2 . 2 Hottest 100 | . 100 100 83 . 83 Shots Fired 196 | . 121 30 10 . 35 Gun 116 | . 73 10 5 . 28 Cannon 70 | . 46 13 4 . 7 Launcher 10 | . 2 7 1 . . Special . | . . . . . . Kinetic 114 | . 82 3 5 . 24 Thermal 72 | . 37 20 4 . 11 Explosive 10 | . 2 7 1 . . Electromagnetic . | . . . . . . Robot Hit Streak 12 | . 11 12 5 . 8 Robot Miss Streak 13 | . 13 2 3 . 3 Penetration Max . | . . . . . . Secondary Targets . | . . . . . . Shots Hit Robots 109 | . 58 18 5 . 28 Core Hits 61 | . 23 17 8 . 13 Critical Kills . | . . . . . . Critical Parts Destroyed . | . . . . . . Critical Strikes 1 | . 1 . . . . Burn 1 | . 1 . . . . Melee Attacks 1 | . 1 . . . . Impact . | . . . . . . Slashing . | . . . . . . Piercing . | . . . . . . Sneak Attacks 1 | . 1 . . . . Combat Hostiles . | . . . . . . Follow-up Attacks . | . . . . . . Damage Inflicted 2149 | . 817 733 114 . 485 Guns 855 | . 327 77 79 . 372 Cannons 665 | . 400 140 18 . 107 Explosions 566 | . 48 504 14 . . Melee . | . . . . . . Ramming 63 | . 42 12 3 . 6 Kinetic 916 | . 500 12 79 . 325 Thermal 604 | . 227 205 18 . 154 Explosive 566 | . 48 504 14 . . Electromagnetic . | . . . . . . Impact . | . . . . . . Slashing . | . . . . . . Piercing . | . . . . . . Highest Corruption . | . . . . . . Average Corruption . | . . . . . . Corruption Purged . | . . . . . . Corruption Blocked . | . . . . . . Overload Shots . | . . . . . . Overflow Damage 21 | . . 21 . . . Projectiles . | . . . . . . Explosions 21 | . . 21 . . . Melee . | . . . . . . Knockbacks 8 | . 8 . . . . Impact . | . . . . . . Kinetic 8 | . 8 . . . . Secondary . | . . . . . . Self-Inflicted Damage 65 | . . 33 32 . . Shots 3 | . . 2 1 . . Rammed . | . . . . . . Targets Rammed 19 | . 8 7 1 . 3 Kicked 19 | . 8 7 1 . 3 Crushed . | . . . . . . Highest Temperature 99 | . 84 99 54 . 89 Average Temperature 26 | . 22 41 26 . 25 Received Heat Transfer 612 | . 96 63 48 . 405 Siege Activations . | . . . . . . Martial Activations . | . . . . . . Shielding Activations . | . . . . . . Robots Disrupted . | . . . . . . Combat Hostiles . | . . . . . . Robots Corrupted . | . . . . . . Combat Hostiles . | . . . . . . Parts Fried . | . . . . . . Impact Corruptions . | . . . . . . Robots Melted . | . . . . . . Combat Hostiles . | . . . . . . Parts Melted 3 | . . 3 . . . Heat Transferred 1533 | . 728 446 37 . 322 Parts Sabotaged . | . . . . . . Parts Stolen . | . . . . . . Parts Stripped . | . . . . . . Power Chain Reactions . | . . . . . . Alert | -11 -10 -9 -9 -9 -8 ------- Run | Yrd Mat Mat Min Exi Min Maximum Alert Level . | . . . . . . Low Security (%) 100 | 100 100 100 100 . 100 Level 1 . | . . . . . . Level 2 . | . . . . . . Level 3 . | . . . . . . Level 4 . | . . . . . . Level 5 . | . . . . . . High Security . | . . . . . . Max Security . | . . . . . . Peak Influence 177 | . 177 131 76 . 30 Initial 73 | . . 73 38 . . Average 32 | . 25 75 45 . 9 Influence Increases 829 | . 421 270 78 . 60 Destroy 0b10 Robot/C 440 | . 200 140 60 . 40 Destroy 0b10 Robot/NC 45 | . 25 20 . . . Destroy Leader 120 | . 48 42 10 . 20 Successful Hack 37 | . 25 12 . . . Disable Machine 15 | . 15 . . . . Destroy Structure 67 | . 18 41 8 . . Lose Combat Pursuer 105 | . 90 15 . . . Influence Decreases 829 | . 246 346 141 36 60 Entered New Map 199 | . . 102 61 36 . Time Decay 550 | . 236 214 60 . 40 Lost Part 80 | . 10 30 20 . 20 Squads Dispatched 1 | . 1 . . . . Investigation 1 | . 1 . . . . Extermination . | . . . . . . Reinforcement . | . . . . . . Assault . | . . . . . . Garrison . | . . . . . . Intercept . | . . . . . . Searches Triggered . | . . . . . . Construction Impeded . | . . . . . . Haulers Reinforced . | . . . . . . Active Scanning Responses . | . . . . . . Cargo Convoy Interrupts . | . . . . . . Stealth | -11 -10 -9 -9 -9 -8 --------- Run | Yrd Mat Mat Min Exi Min Distress Signals . | . . . . . . Communications Jammed . | . . . . . . Distress Signals . | . . . . . . Times Spotted 36 | . 19 7 3 . 7 Peak Tracking Total 6 | . 5 5 3 . 6 Tactical Retreats 4 | . 3 1 . . . Traps | -11 -10 -9 -9 -9 -8 ------- Run | Yrd Mat Mat Min Exi Min Traps Triggered 1 | . 1 . . . . Indirectly . | . . . . . . Trap Hack Attempts . | . . . . . . Triggered . | . . . . . . Disarmed . | . . . . . . Reprogrammed . | . . . . . . Reused . | . . . . . . Traps Extracted . | . . . . . . Installed . | . . . . . . Triggered . | . . . . . . Machines | -11 -10 -9 -9 -9 -8 ---------- Run | Yrd Mat Mat Min Exi Min Machines Disabled 1 | . 1 . . . . Max in Single Turn 1 | . 1 . . . . Machines Repaired . | . . . . . . Machines Dismantled . | . . . . . . Machines Sabotaged . | . . . . . . Overloaded Fab Kills . | . . . . . . Hacking | -11 -10 -9 -9 -9 -8 --------- Run | Yrd Mat Mat Min Exi Min Machines Accessed 14 | . 10 3 . 1 . Terminals 11 | . 8 3 . . . Fabricators . | . . . . . . Repair Stations . | . . . . . . Recycling Units 2 | . 2 . . . . Scanalyzers . | . . . . . . Garrison Access . | . . . . . . Total Hacks 31 | . 21 9 . 1 . Successful 19 | . 14 4 . 1 . Failed 12 | . 7 5 . . . Catastrophic 1 | . 1 . . . . Database Lockouts . | . . . . . . Manual 1 | . . . . 1 . Terminals 26 | . 17 9 . . . Fabricators . | . . . . . . Repair Stations . | . . . . . . Recycling Units 4 | . 4 . . . . Scanalyzers . | . . . . . . Garrison Access . | . . . . . . Terminal Hacks 15 | . 10 4 . 1 . Record 1 | . 1 . . . . Branch Access Points 2 | . 1 1 . . . Emergency Access Points 3 | . 3 . . . . Alert Level 1 | . 1 . . . . Dispatch Records 1 | . . 1 . . . Zone Layout 6 | . 4 2 . . . Proto ID Catalog 1 | . . . . 1 . Fabricator Hacks . | . . . . . . Repair Station Hacks . | . . . . . . Recycling Unit Hacks 4 | . 4 . . . . Process 2 | . 2 . . . . Report Inventory 2 | . 2 . . . . Scanalyzer . | . . . . . . Garrison Access Hacks . | . . . . . . Unauthorized Hacks . | . . . . . . Terminals . | . . . . . . Fabricators . | . . . . . . Repair Stations . | . . . . . . Recycling Units . | . . . . . . Scanalyzers . | . . . . . . Garrison Access . | . . . . . . Data Cores Recovered . | . . . . . . Used . | . . . . . . Hacking Detections 7 | . 5 2 . . . Full Trace Events 1 | . . 1 . . . Feedback Events . | . . . . . . Feedback Blocked . | . . . . . . Robot Schematics Acquired . | . . . . . . Robots Built . | . . . . . . Authchips . | . . . . . . Time . | . . . . . . Total Robot Build Rating . | . . . . . . Part Schematics Acquired . | . . . . . . Parts Built . | . . . . . . Authchips . | . . . . . . Time . | . . . . . . Total Part Build Rating . | . . . . . . Parts Repaired . | . . . . . . Time . | . . . . . . Parts Recycled . | . . . . . . Recycled Matter 157 | . 157 . . . . Retrieved Matter . | . . . . . . Retrieved Components . | . . . . . . Parts Scanalyzed . | . . . . . . Part Schematics Acquired . | . . . . . . Parts Damaged . | . . . . . . Bothacking | -11 -10 -9 -9 -9 -8 ------------ Run | Yrd Mat Mat Min Exi Min Used RIF Installer . | . . . . . . Robots Hacked 1 | . 1 . . . . Non-combat 1 | . 1 . . . . Combat . | . . . . . . Robot Hacks Applied 1 | . 1 . . . . no_distress 1 | . 1 . . . . Relay Couplers Released . | . . . . . . Fabnet Peak Effective % . | . . . . . . Robots Rewired . | . . . . . . Allies Hacked . | . . . . . . Hacks Repelled . | . . . . . . Allies | -11 -10 -9 -9 -9 -8 -------- Run | Yrd Mat Mat Min Exi Min Total Allies . | . . . . . . Largest Group . | . . . . . . Highest-Rated Group . | . . . . . . Highest-Rated Ally . | . . . . . . Total Orders . | . . . . . . Ally Attacks . | . . . . . . Total Damage . | . . . . . . Kills . | . . . . . . Allies Corrupted . | . . . . . . Allies Melted . | . . . . . . Intel | -11 -10 -9 -9 -9 -8 ------- Run | Yrd Mat Mat Min Exi Min Active Infowar (turns) 2179 | . 1877 302 . . . Optics 1892 | . 1877 15 . . . Sensors 289 | . . 289 . . . Robot Analysis Total . | . . . . . . Derelict Logs Recovered . | . . . . . . Drone Launches . | . . . . . . Drone Recoveries . | . . . . . . Exploration | -11 -10 -9 -9 -9 -8 ------------- Run | Yrd Mat Mat Min Exi Min Turns Passed 3116 | 93 2002 443 124 310 144 Spaces Moved 1730 | 69 1019 279 75 258 30 Core 9 | 8 . . . . 1 Treads . | . . . . . . Legs 1721 | 61 1019 279 75 258 29 Wheels . | . . . . . . Hover . | . . . . . . Flight . | . . . . . . Fastest Speed 50 | 50 120 120 120 120 50 Average Speed 120 | 115 120 120 125 120 117 Slowest Speed 190 | 120 190 120 190 120 120 Overloaded Moves . | . . . . . . Propulsion Burnouts . | . . . . . . Robots Hopped . | . . . . . . Potential Cave-ins . | . . . . . . Cave-ins Triggered . | . . . . . . Exploration Rate (%) 30 | 4 91 26 12 42 8 Regions Visited 5 Branch Regions 3 Pre-discovered Areas . | . . . . . . Known Exits Taken 1 | . . 1 . . . Unknown Exits Taken 4 | 1 1 . 1 1 . Scrap Searched . | . . . . . . Spaces Dug . | . . . . . . Terrain Destroyed 69 | . 17 44 8 . . Melee . | . . . . . . Projectile 1 | . 1 . . . . AOE 68 | . 16 44 8 . . Terrain Rammed . | . . . . . . Walls Destroyed . | . . . . . . Machines Disabled . | . . . . . . Actions | -11 -10 -9 -9 -9 -8 --------- Run | Yrd Mat Mat Min Exi Min Total 2564 | 82 1677 351 94 258 102 Wait 634 | . 556 29 5 . 44 Move 1725 | 68 1018 278 74 257 30 Hop . | . . . . . . Pick Up 31 | 8 13 6 3 1 . Fast Attach 2 | . 1 . . . 1 Attach 17 | 6 1 4 4 . 2 Detach . | . . . . . . Swap 24 | . 12 10 1 . 1 Drop 9 | . 6 1 1 . 1 Fire 102 | . 61 16 5 . 20 Melee 1 | . 1 . . . . Ram . | . . . . . . Kick 19 | . 8 7 1 . 3 Crush . | . . . . . . Escape Stasis . | . . . . . . Rewire . | . . . . . . Trap . | . . . . . . Miscellaneous . | . . . . . . Route ------- -11/Scrapyard -10/Materials (discovered 5 exits: *Mat x3 / *Min / [*Sub]) -9/Materials -9/Mines -9/Exiles -8/Mines History --------- Turn | Location | Event 6 | -11/Scrapyard | Discovered new exit (range 16) 94 | -11/Scrapyard | Entered Materials 264 | -10/Materials | Discovered new exit (range 15) 316 | -10/Materials | Build established: Mutant 338 | -10/Materials | Discovered new exit (range 17) 428 | -10/Materials | Discovered new exit (range 7) 543 | -10/Materials | Identified exit to Mines 1528 | -10/Materials | Discovered new exit (range 11) 1818 | -10/Materials | Discovered new exit (range 16) 1879 | -10/Materials | Core integrity fell below 50% 2096 | -10/Materials | Entered another Materials area 2096 | -9/Materials | Evolved 2 slots: Propulsion x2 2422 | -9/Materials | Identified exit to Mines 2539 | -9/Materials | Entered Mines 2655 | -9/Mines | Deemed a non-threat by the Exiles lab entrance 2656 | -9/Mines | Discovered new exit (range 5) 2663 | -9/Mines | Entered Exiles 2705 | -9/Exiles | Met 8R-AWN 2734 | -9/Exiles | Met EX-HEX 2768 | -9/Exiles | Met EX-BIN 2785 | -9/Exiles | Aligned with FarCom system 2786 | -9/Exiles | Given EX-Vault access code 2816 | -9/Exiles | Opened EX-Vault 2822 | -9/Exiles | Found Prototype Device 2824 | -9/Exiles | Identified Chronowheel 2849 | -9/Exiles | Warned to stay clear of 0b10 Research branches 2919 | -9/Exiles | Build established: Scavenger-Mutant 2950 | -9/Exiles | Discovered new exit (range 14) 2973 | -9/Exiles | Left Exiles lab with Chronowheel 2973 | -9/Exiles | Entered Mines 3097 | -8/Mines | Core integrity fell below 50% 3107 | -8/Mines | Activated Chronowheel 3115 | -8/Mines | Core integrity fell below 20% 3117 | -8/Mines | Self-destructed Last Messages --------------- Slug penetrates G-50 Soldier. Kicked G-50 Soldier. R-06 Scavenger collects Tractor Beam. Kicked G-50 Soldier out of the way. Critical hit (Burn: +37). R-06 Scavenger collects Beam Cannon. Slug penetrates G-47 Trooper. Aluminum Leg destroyed. Slug penetrates G-47 Trooper. Aluminum Leg destroyed. Shotgun destroyed. Slug penetrates G-47 Trooper. R-06 Scavenger collects Sml. Storage Unit. Spacetime feels off. Gauss Rifle destroyed. Ion Engine destroyed. Chronowheel destroyed. Spacetime feels normal again. Critical hit (Burn: +37). Sml. Laser destroyed. Map ----- +----------------------------------------------------+ | | | | | | | | | | | | | | | | | | | | | | | | | | | | | | | | | | | | | ?????????????????????????????????????????????????? | | ????????????????##???????????????????????????????? | | ???????????????## ???????????????????????????????? | | ??????????????## ?????#######??????????????????? | | ?????????????## ?????# #??????????????????? | | ????????????## ????# %#??????????????????? | | ??????? #### #####! #??????????????????? | | ?????? g$ @ #??????????????????? | | ??????? rggg= #??????????????????? | | ???????????#### ###* #??????????????????? | | ??????????????## #?## ####??????????????????? | | ???????????????##### #??#g#?????????????????????? | | ???????????????????# #??#%#?????????????????????? | | ???????????????????# ?? [#?????????????????????? | | ???????????????????# #??###?????????????????????? | | ???????????????????# #??????????????????????????? | | ???????????????????# #??????????????????????????? | | ??????????????????? #??????????????????????????? | | ???????????????????# ???????????????????????????? | | ???????????????????# ???????????????????????????? | | ???????????????????# ???????????????????????????? | | ???????????????????# ???????????????????????????? | | ???????????????????? ???????????????????????????? | | ???????????????????? ???????????????????????????? | | ???????????????????? ???????????????????????????? | | ?????????????????????????????????????????????????? | | ?????????????????????????????????????????????????? | | ?????????????????????????????????????????????????? | | ?????????????????????????????????????????????????? | | ?????????????????????????????????????????????????? | | ?????????????????????????????????????????????????? | | ?????????????????????????????????????????????????? | +----------------------------------------------------+ Best States ------------- Heat Dissipation 28 Energy Generation 10 Energy Capacity 250 Matter Stores 300 Matter Capacity 300 Sight Range 18 Robot Scan Range 14 Terrain Scan Density 10 Propulsion Shielding 33 Evasion (%) 55 Targeting Accuracy 6 Item Schematics ----------------- None Robot Schematics ------------------ None Fabricated ------------ Nothing Repaired ---------- Nothing Alien Tech Used ----------------- None Achievements -------------- None Challenges ------------ None Game ------ Seed BattleCompanionBeam Manual? 0 Play Time 00:29:51 Cumulative 13.5 hours Start 2025.05.31 @ 00:10:04 End 2025.05.31 @ 00:45:08 Sessions 1 Manual Loads 0 Difficulty Rogue Special Mode None Game No. 14 Rogue 8 Adventurer 0 Explorer 6 Win Type - Total 0 Types 0/0/0/0/0/0/0/0/0/0 Lore% 10 Gallery% 15 Achievement% 19 Wizard Run 0 Options --------- Layout 1 ASCII 0 Keyboard 0 Movement Arrows Keybinds 0 Fullscreen 1 Font 24/Smallcaps Map View 50x35 Zoom Use 0% Tactical HUD 0 Map Filters NONE Filters NONE Steam 1 RUN: a0804b32-de9e-4e45-bb5c-4e5135a13c88